fUSD/lending_fUSD_20251001
["ID","MTS","AMOUNT","RATE_DAILY","PERIOD"]
[388632061,1759277443828,-400.0,0.00023014,2]
[388632062,1759277443838,-1487.16245539,0.0002303,2]
[388632063,1759277443847,-151.0,0.00023039,7]
[388632064,1759277443857,-151.0,0.00023039,7]
[388632065,1759277443868,-151.0,0.00023039,7]
[388632066,1759277443877,-151.0,0.00023039,7]
[388632067,1759277443886,-151.0,0.00023039,7]
[388632068,1759277443895,-245.0,0.00023039,7]
[388632069,1759277443908,-4146.685504,0.00023039,7]
[388632070,1759277443917,-4146.685504,0.00023039,7]
[388632071,1759277443927,-4146.685504,0.00023039,7]
[388632072,1759277443936,-4146.685504,0.00023039,7]
[388632073,1759277443945,-177.089492,0.00023039,7]
[388632074,1759277443955,-151.0,0.00023039,7]
[388632075,1759277443964,-151.0,0.00023039,7]
[388632076,1759277443973,-179.253916,0.00023039,7]
[388632077,1759277443982,-179.253916,0.00023039,7]
[388632078,1759277443992,-179.253916,0.00023039,7]
[388632079,1759277444001,-179.253916,0.00023039,7]
[388632080,1759277444011,-802.390516,0.00023039,7]
[388632081,1759277444020,-802.390516,0.00023039,7]
[388632082,1759277444029,-802.390516,0.00023039,7]
[388632083,1759277444038,-802.390516,0.00023039,7]
[388632085,1759277444047,-209.476173,0.00023039,7]
[388632087,1759277444057,-151.0,0.00023039,7]
[388632089,1759277444066,-151.0,0.00023039,7]
[388632091,1759277444075,-151.0,0.00023039,7]
[388632093,1759277444084,-151.0,0.00023039,7]
[388632095,1759277444094,-151.0,0.00023039,7]
[388632097,1759277444103,-3253.200103,0.00023039,7]
[388632099,1759277444112,-3253.200103,0.00023039,7]
[388632101,1759277444122,-162.267276,0.00023039,7]
[388632103,1759277444130,-3253.200103,0.00023039,7]
[388632104,1759277444140,-3253.200103,0.00023039,7]
[388632106,1759277444149,-151.0,0.00023039,7]
[388632108,1759277444158,-151.0,0.00023039,7]
[388632109,1759277444168,-151.0,0.00023039,7]
[388632110,1759277444177,-151.0,0.00023039,7]
[388632111,1759277444186,-151.0,0.00023039,7]
[388632112,1759277444196,-151.0,0.00023039,7]
[388632113,1759277444206,-151.0,0.00023039,7]
[388632114,1759277444216,-151.0,0.00023039,7]
[388632115,1759277444225,-151.0,0.00023039,7]
[388632116,1759277444235,-151.0,0.00023039,7]
[388632117,1759277444246,-151.0,0.00023039,7]
[388632118,1759277444255,-151.0,0.00023039,7]
[388632119,1759277444264,-151.0,0.00023039,7]
[388632120,1759277444275,-151.0,0.00023039,7]
[388632121,1759277444284,-270.489507,0.00023039,7]
[388632122,1759277444294,-205.158396,0.00023039,7]
[388632123,1759277444303,-194.730521,0.00023039,7]
[388632124,1759277444312,-151.0,0.00023039,7]
[388632125,1759277444321,-194.730521,0.00023039,7]
[388632126,1759277444331,-151.0,0.00023039,7]
[388632127,1759277444342,-194.730521,0.00023039,7]
[388632128,1759277444351,-12106.91538032,0.00023039,2]
[388632129,1759277444360,-800.0,0.00023077,13]
[388632130,1759277444370,-800.0,0.00023077,13]
[388632131,1759277444380,-800.0,0.00023077,13]
[388632132,1759277444389,-200.0,0.00023077,2]
[388632133,1759277444399,-200.0,0.00023077,2]
[388632134,1759277444408,-800.0,0.00023077,13]
[388632135,1759277444418,-800.0,0.00023077,13]
[388632136,1759277444427,-800.0,0.00023077,13]
[388632137,1759277444437,-800.0,0.00023077,13]
[388632138,1759277444446,-800.0,0.00023077,13]
[388632139,1759277444455,-800.0,0.00023077,13]
[388632140,1759277444465,-800.0,0.00023077,13]
[388632141,1759277444475,-800.0,0.00023077,13]
[388632142,1759277444484,-800.0,0.00023077,13]
[388632143,1759277444494,-800.0,0.00023077,13]
[388632144,1759277444503,-800.0,0.00023077,13]
[388632145,1759277444513,-800.0,0.00023077,13]
[388632146,1759277444522,-800.0,0.00023077,13]
[388632147,1759277444532,-800.0,0.00023077,13]
[388632148,1759277444542,-800.0,0.00023077,13]
[388632149,1759277444552,-800.0,0.00023077,13]
[388632150,1759277444562,-800.0,0.00023077,13]
[388632151,1759277444572,-800.0,0.00023077,13]
[388632152,1759277444582,-800.0,0.00023077,13]
[388632153,1759277444592,-200.0,0.00023077,2]
[388632154,1759277444601,-800.0,0.00023077,13]
[388632155,1759277444611,-800.0,0.00023077,13]
[388632156,1759277444620,-800.0,0.00023077,13]
[388632157,1759277444630,-800.0,0.00023077,13]
[388632158,1759277444639,-800.0,0.00023077,13]
[388632159,1759277444649,-800.0,0.00023077,13]
[388632160,1759277444659,-800.0,0.00023077,13]
[388632161,1759277444669,-800.0,0.00023077,13]
[388632162,1759277444679,-800.0,0.00023077,13]
[388632163,1759277444688,-800.0,0.00023077,13]
[388632164,1759277444697,-800.0,0.00023077,13]
[388632165,1759277444707,-800.0,0.00023077,13]
[388632166,1759277444716,-800.0,0.00023077,13]
[388632167,1759277444726,-800.0,0.00023077,13]
[388632168,1759277444735,-800.0,0.00023077,13]
[388632169,1759277444744,-200.0,0.00023077,2]
[388632170,1759277444754,-200.0,0.00023077,2]
[388632171,1759277444763,-200.0,0.00023077,2]
[388632172,1759277444772,-200.0,0.00023077,2]
[388632173,1759277444781,-200.0,0.00023077,2]
[388632174,1759277444791,-200.0,0.00023077,2]
[388632175,1759277444801,-200.0,0.00023077,2]
[388632177,1759277444810,-200.0,0.00023077,2]
[388632179,1759277444820,-200.0,0.00023077,2]
[388632180,1759277444830,-200.0,0.00023077,2]
[388632181,1759277444839,-200.0,0.00023077,2]
[388632182,1759277444853,-200.0,0.00023077,2]
[388632183,1759277444864,-800.0,0.00023077,13]
[388632184,1759277444874,-800.0,0.00023077,13]
[388632185,1759277444884,-800.0,0.00023077,13]
[388632186,1759277444894,-800.0,0.00023077,13]
[388632187,1759277444904,-800.0,0.00023077,13]
[388632188,1759277444914,-800.0,0.00023077,13]
[388632189,1759277444923,-800.0,0.00023077,13]
[388632190,1759277444932,-800.0,0.00023077,13]
[388632191,1759277444942,-800.0,0.00023077,13]
[388632192,1759277444952,-800.0,0.00023077,13]
[388632193,1759277444964,-800.0,0.00023077,13]
[388632194,1759277444973,-800.0,0.00023077,13]
[388632195,1759277444983,-800.0,0.00023077,13]
[388632196,1759277444993,-800.0,0.00023077,13]
[388632197,1759277445002,-800.0,0.00023077,13]
[388632198,1759277445011,-800.0,0.00023077,13]
[388632199,1759277445021,-800.0,0.00023077,13]
[388632200,1759277445031,-800.0,0.00023077,13]
[388632201,1759277445040,-800.0,0.00023077,13]
[388632202,1759277445049,-800.0,0.00023077,13]
[388632203,1759277445058,-800.0,0.00023077,13]
[388632204,1759277445067,-800.0,0.00023077,13]
[388632205,1759277445077,-200.0,0.00023077,2]
[388632206,1759277445086,-200.0,0.00023077,2]
[388632207,1759277445096,-200.0,0.00023077,2]
[388632208,1759277445105,-200.0,0.00023077,2]
[388632209,1759277445115,-200.0,0.00023077,2]
[388632210,1759277445125,-200.0,0.00023077,2]
[388632211,1759277445136,-800.0,0.00023077,13]
[388632212,1759277445146,-800.0,0.00023077,13]
[388632213,1759277445155,-800.0,0.00023077,13]
[388632214,1759277445165,-200.0,0.00023077,2]
[388632215,1759277445175,-200.0,0.00023077,2]
[388632216,1759277445185,-820.0,0.00023077,13]
[388632217,1759277445194,-200.0,0.00023077,2]
[388632218,1759277445204,-200.0,0.00023077,2]
[388632219,1759277445214,-200.0,0.00023077,2]
[388632220,1759277445223,-200.0,0.00023077,2]
[388632221,1759277445233,-200.0,0.00023077,2]
[388632222,1759277445243,-200.0,0.00023077,2]
[388632223,1759277445253,-200.0,0.00023077,2]
[388632224,1759277445262,-200.0,0.00023077,2]
[388632225,1759277445271,-200.0,0.00023077,2]
[388632226,1759277445280,-800.0,0.00023077,13]
[388632227,1759277445289,-800.0,0.00023077,13]
[388632228,1759277445298,-800.0,0.00023077,13]
[388632229,1759277445307,-800.0,0.00023077,13]
[388632230,1759277445317,-800.0,0.00023077,13]
[388632231,1759277445325,-800.0,0.00023077,13]
[388632232,1759277445334,-800.0,0.00023077,13]
[388632233,1759277445343,-200.0,0.00023077,2]
[388632234,1759277445352,-200.0,0.00023077,2]
[388632235,1759277445361,-200.0,0.00023077,2]
[388632236,1759277445370,-231.0,0.00023077,2]
[388632237,1759277445379,-151.0,0.00023077,7]
[388632238,1759277445387,-151.0,0.00023077,7]
[388632239,1759277445396,-281.75757,0.00023077,7]
[388632240,1759277445406,-151.0,0.00023077,7]
[388632241,1759277445415,-151.0,0.00023077,7]
[388632242,1759277445424,-151.0,0.00023077,7]
[388632243,1759277445434,-151.0,0.00023077,7]
[388632244,1759277445443,-151.0,0.00023077,7]
[388632245,1759277445452,-151.0,0.00023077,7]
[388632246,1759277445461,-190.998523,0.00023077,7]
[388632247,1759277445470,-151.0,0.00023077,7]
[388632248,1759277445479,-151.0,0.00023077,7]
[388632249,1759277445488,-151.0,0.00023077,7]
[388632250,1759277445498,-151.0,0.00023077,7]
[388632251,1759277445507,-151.0,0.00023077,7]
[388632252,1759277445517,-151.0,0.00023077,7]
[388632253,1759277445526,-151.0,0.00023077,7]
[388632254,1759277445536,-151.0,0.00023077,7]
[388632255,1759277445545,-151.0,0.00023077,7]
[388632256,1759277445554,-151.0,0.00023077,7]
[388632257,1759277445563,-188.243259,0.00023077,7]
[388632258,1759277445572,-151.0,0.00023077,7]
[388632259,1759277445581,-159.515398,0.00023077,7]
[388632260,1759277445590,-159.515398,0.00023077,7]
[388632261,1759277445599,-159.515398,0.00023077,7]
[388632262,1759277445608,-159.515398,0.00023077,7]
[388632263,1759277445618,-151.0,0.00023077,7]
[388632264,1759277445627,-151.0,0.00023077,7]
[388632265,1759277445637,-151.0,0.00023077,7]
[388632266,1759277445646,-151.0,0.00023077,7]
[388632267,1759277445655,-151.0,0.00023077,7]
[388632268,1759277445665,-151.0,0.00023077,7]
[388632269,1759277445674,-151.0,0.00023077,7]
[388632270,1759277445683,-151.0,0.00023077,7]
[388632271,1759277445693,-151.0,0.00023077,7]
[388632272,1759277445702,-151.0,0.00023077,7]
[388632273,1759277445711,-151.0,0.00023077,7]
[388632274,1759277445721,-151.0,0.00023077,7]
[388632275,1759277445730,-151.0,0.00023077,7]
[388632276,1759277445739,-248.35513,0.00023077,7]
[388632277,1759277445748,-248.35513,0.00023077,7]
[388632278,1759277445758,-248.35513,0.00023077,7]
[388632279,1759277445767,-248.35513,0.00023077,7]
[388632280,1759277445776,-151.0,0.00023077,7]
[388632281,1759277445785,-195.161693,0.00023077,7]
[388632282,1759277445795,-195.161693,0.00023077,7]
[388632283,1759277445806,-195.161693,0.00023077,7]
[388632284,1759277445816,-151.0,0.00023077,7]
[388632285,1759277445826,-254.347559,0.00023077,7]
[388632286,1759277445835,-254.347559,0.00023077,7]
[388632287,1759277445847,-254.347559,0.00023077,7]
[388632288,1759277445858,-254.347559,0.00023077,7]
[388632289,1759277445868,-615.245957,0.00023077,7]
[388632290,1759277445878,-615.245957,0.00023077,7]
[388632291,1759277445888,-615.245957,0.00023077,7]
[388632292,1759277445897,-615.245957,0.00023077,7]
[388632293,1759277445907,-151.0,0.00023077,7]
[388632294,1759277445918,-151.0,0.00023077,7]
[388632295,1759277445930,-151.0,0.00023077,7]
[388632296,1759277445940,-151.0,0.00023077,7]
[388632297,1759277445949,-151.0,0.00023077,7]
[388632298,1759277445960,-151.0,0.00023077,7]
[388632299,1759277445976,-151.0,0.00023077,7]
[388632300,1759277445989,-3339.91,0.000231,7]
[388632301,1759277446005,-2546.63853733,0.000231,2]
[388632302,1759277446015,-1558.70979001,0.00023127,2]
[388632303,1759277446024,-1200.0,0.00023128,2]
[388632304,1759277446034,-541.0,0.00023132,2]
[388632305,1759277446044,-500.0,0.00023132,2]
[388632306,1759277446053,-500.0,0.00023132,2]
[388632307,1759277446064,-551.38733671,0.00023132,2]
[388632308,1759277446073,-600.0,0.00023176,2]
[388632309,1759277446084,-178.68,0.00023182,2]
[388632310,1759277446093,-3525.4,0.00023185,7]
[388632311,1759277446103,-3525.4,0.00023185,7]
[388632312,1759277446113,-343.3519893,0.000232,2]
[388632313,1759277446122,-648.70740317,0.000232,2]
[388632314,1759277446132,-51376.84915356,0.000232,2]
[388632315,1759277446141,-151.0,0.000232,7]
[388632316,1759277446150,-151.0,0.000232,7]
[388632317,1759277446159,-151.0,0.000232,7]
[388632318,1759277446168,-151.0,0.000232,7]
[388632319,1759277446178,-248.35513,0.000232,7]
[388632320,1759277446187,-248.35513,0.000232,7]
[388632321,1759277446196,-248.35513,0.000232,7]
[388632322,1759277446206,-248.355132,0.000232,7]
[388632323,1759277446215,-151.0,0.000232,7]
[388632324,1759277446224,-195.161693,0.000232,7]
[388632325,1759277446234,-195.161693,0.000232,7]
[388632326,1759277446243,-195.161697,0.000232,7]
[388632327,1759277446252,-254.347559,0.000232,7]
[388632328,1759277446262,-254.347559,0.000232,7]
[388632329,1759277446271,-254.347559,0.000232,7]
[388632330,1759277446281,-254.34756,0.000232,7]
[388632331,1759277446290,-615.245957,0.000232,7]
[388632332,1759277446299,-615.245957,0.000232,7]
[388632333,1759277446308,-615.245957,0.000232,7]
[388632334,1759277446318,-615.245959,0.000232,7]
[388632335,1759277446328,-151.0,0.000232,7]
[388632336,1759277446337,-151.0,0.000232,7]
[388632337,1759277446346,-151.0,0.000232,7]
[388632338,1759277446355,-151.0,0.000232,7]
[388632339,1759277446364,-151.0,0.000232,7]
[388632340,1759277446373,-151.0,0.000232,7]
[388632341,1759277446382,-151.0,0.000232,7]
[388632342,1759277446391,-151.0,0.000232,7]
[388632343,1759277446400,-151.0,0.000232,7]
[388632344,1759277446409,-4146.685504,0.000232,7]
[388632345,1759277446418,-4146.685504,0.000232,7]
[388632346,1759277446428,-4146.685504,0.000232,7]
[388632347,1759277446437,-4146.685502,0.000232,7]
[388632348,1759277446447,-151.0,0.000232,7]
[388632349,1759277446456,-151.0,0.000232,7]
[388632350,1759277446465,-179.253916,0.000232,7]
[388632351,1759277446475,-179.253916,0.000232,7]
[388632352,1759277446484,-179.253916,0.000232,7]
[388632353,1759277446494,-179.25391,0.000232,7]
[388632354,1759277446503,-802.390516,0.000232,7]
[388632355,1759277446512,-802.390516,0.000232,7]
[388632356,1759277446522,-802.390516,0.000232,7]
[388632357,1759277446532,-802.390508,0.000232,7]
[388632358,1759277446541,-151.0,0.000232,7]
[388632359,1759277446550,-204.804624,0.000232,7]
[388632360,1759277446560,-151.0,0.000232,7]
[388632361,1759277446569,-151.0,0.000232,7]
[388632362,1759277446579,-151.0,0.000232,7]
[388632363,1759277446589,-3253.200103,0.000232,7]
[388632364,1759277446598,-3253.200103,0.000232,7]
[388632365,1759277446607,-3253.200103,0.000232,7]
[388632366,1759277446617,-3253.200102,0.000232,7]
[388632367,1759277446626,-151.0,0.000232,7]
[388632368,1759277446636,-151.0,0.000232,7]
[388632369,1759277446646,-151.0,0.000232,7]
[388632370,1759277446655,-151.0,0.000232,7]
[388632371,1759277446664,-151.0,0.000232,7]
[388632372,1759277446674,-151.0,0.000232,7]
[388632373,1759277446683,-151.0,0.000232,7]
[388632374,1759277446692,-151.0,0.000232,7]
[388632375,1759277446701,-151.0,0.000232,7]
[388632376,1759277446711,-151.0,0.000232,7]
[388632377,1759277446720,-151.0,0.000232,7]
[388632378,1759277446729,-151.0,0.000232,7]
[388632379,1759277446739,-151.0,0.000232,7]
[388632380,1759277446749,-194.730521,0.000232,7]
[388632381,1759277446758,-151.0,0.000232,7]
[388632382,1759277446767,-194.730521,0.000232,7]
[388632383,1759277446777,-151.0,0.000232,7]
[388632384,1759277446878,-194.730521,0.000232,7]
[388632385,1759277446925,-600.0,0.00023206,2]
[388632386,1759277446936,-167.75,0.00023217,2]
[388632387,1759277446946,-1191.46,0.00023217,2]
[388632388,1759277446955,-167.75,0.00023217,2]
[388632389,1759277446965,-167.75,0.00023218,2]
[388632390,1759277446975,-167.75,0.00023218,2]
[388632391,1759277446984,-534.03,0.00023218,2]
[388632392,1759277446994,-335.42,0.00023218,2]
[388632393,1759277447004,-167.75,0.00023218,2]
[388632394,1759277447013,-1358.094069,0.00023219,2]
[388632395,1759277447024,-1630.25712464,0.00023225,2]
[388632396,1759277447033,-151.0,0.00023233,7]
[388632397,1759277447043,-151.0,0.00023233,7]
[388632398,1759277447052,-151.0,0.00023233,7]
[388632399,1759277447062,-151.0,0.00023233,7]
[388632400,1759277447072,-151.0,0.00023233,7]
[388632401,1759277447081,-1001.60714287,0.00023264,2]
[388632402,1759277447091,-178.68,0.00023265,2]
[388632403,1759277447101,-1019.0,0.00023288,7]
[388632404,1759277447110,-151.0,0.00023288,7]
[388632405,1759277447120,-198.382819,0.00023288,7]
[388632406,1759277447130,-4175.0,0.00023315,2]
[388632407,1759277447139,-1311.0,0.00023315,2]
[388632408,1759277447149,-1701.80445926,0.00023323,2]
[388632409,1759277447162,-386.47695666,0.00023333,2]
[388632410,1759277447172,-167641.12991321,0.00023333,2]
[388632411,1759277447182,-11315.2630569,0.00023333,7]
[388632412,1759277447193,-151.0,0.00023333,7]
[388632413,1759277447203,-255.869018,0.00023333,7]
[388632414,1759277447212,-151.0,0.00023333,7]
[388632415,1759277447222,-151.0,0.00023333,7]
[388632416,1759277447232,-151.0,0.00023333,7]
[388632417,1759277447241,-151.0,0.00023333,7]
[388632418,1759277447250,-151.0,0.00023333,7]
[388632419,1759277447260,-151.0,0.00023333,7]
[388632420,1759277447269,-151.0,0.00023333,7]
[388632421,1759277447279,-164.818998,0.00023333,7]
[388632422,1759277447291,-151.0,0.00023333,7]
[388632423,1759277447311,-159.515398,0.00023333,7]
[388632424,1759277447323,-159.515398,0.00023333,7]
[388632425,1759277447334,-159.515398,0.00023333,7]
[388632426,1759277447344,-159.51539,0.00023333,7]
[388632427,1759277447354,-151.0,0.00023333,7]
[388632428,1759277447365,-151.0,0.00023333,7]
[388632429,1759277447375,-151.0,0.00023333,7]
[388632430,1759277447386,-151.0,0.00023333,7]
[388632431,1759277447402,-151.0,0.00023333,7]
[388632432,1759277447414,-151.0,0.00023333,7]
[388632433,1759277447424,-1000.0,0.00023347,2]
[388632434,1759277447434,-771.80780102,0.00023359,2]
[388632435,1759277447445,-500.0,0.00023373,2]
[388632436,1759277447456,-500.0,0.00023373,2]
[388632437,1759277447466,-500.0,0.00023373,2]
[388632438,1759277447477,-500.0,0.00023373,2]
[388632439,1759277447488,-366.09462243,0.00023388,2]
[388632440,1759277447498,-1454.77657053,0.000234,7]
[388632441,1759277447508,-541.0,0.00023406,2]
[388632442,1759277447519,-500.0,0.00023406,2]
[388632443,1759277447529,-500.0,0.00023406,2]
[388632444,1759277447539,-2525.7571465,0.00023412,2]
[388632445,1759277447549,-4002.8038062,0.00023457,2]
[388632446,1759277447560,-1553.6767316,0.00023457,2]
[388632447,1759277447570,-3525.4,0.00023459,7]
[388632448,1759277447581,-3525.4,0.00023459,7]
[388632449,1759277447591,-339.97446251,0.00023482,2]
[388632450,1759277447602,-250.0,0.00023487,2]
[388632451,1759277447613,-888.48356388,0.00023487,2]
[388632452,1759277447626,-803.20093,0.0002349,2]
[388632453,1759277447636,-166.54,0.00023491,2]
[388632454,1759277447648,-343.3519893,0.000235,2]
[388632455,1759277447658,-648.70740317,0.000235,2]
[388632456,1759277447668,-3861.64109284,0.000235,5]
[388632457,1759277447678,-200.0,0.000235,2]
[388632458,1759277447688,-200.0,0.0002351,7]
[388632459,1759277447698,-437.0,0.0002355,2]
[388632460,1759277447714,-359.76179104,0.00023569,2]
[388632461,1759277447726,-6473.34962066,0.00023645,2]
[388632462,1759277447737,-541.0,0.0002368,2]
[388632463,1759277447747,-500.0,0.0002368,2]
[388632464,1759277447758,-500.0,0.0002368,2]
[388632465,1759277447769,-2137.81123795,0.00023685,2]
[388632466,1759277447780,-343.3519893,0.000237,2]
[388632467,1759277447792,-648.70740317,0.000237,2]
[388632468,1759277447804,-200.0,0.0002371,2]
[388632469,1759277447815,-3525.4,0.00023733,7]
[388632470,1759277447826,-3525.4,0.00023733,7]
[388632471,1759277447837,-600.0,0.00023754,2]
[388632472,1759277447856,-303.0317471,0.00023802,2]
[388632473,1759277447866,-200.0,0.0002381,2]
[388632474,1759277447879,-12106.91538032,0.00023833,2]
[388632475,1759277447889,-1536.52,0.00023836,2]
[388632476,1759277447900,-343.3519893,0.000239,2]
[388632477,1759277447911,-648.70740317,0.000239,2]
[388632478,1759277447921,-200.0,0.0002391,7]
[388632479,1759277447934,-500.0,0.00023921,2]
[388632480,1759277447944,-646.1045816,0.00023921,2]
[388632481,1759277447955,-1000.8494536,0.00023921,2]
[388632482,1759277447965,-1019.0,0.00023934,7]
[388632483,1759277447975,-541.0,0.00023954,2]
[388632484,1759277447986,-490.83061605,0.00023954,2]
[388632485,1759277447996,-500.0,0.00023954,2]
[388632486,1759277448006,-1196.36,0.00023974,2]
[388632487,1759277448016,-1443.35,0.00023974,2]
[388632488,1759277448027,-1000.0,0.00024,9]
[388632489,1759277448037,-1800.0,0.00024,4]
[388632490,1759277448048,-3525.4,0.00024007,7]
[388632491,1759277448058,-3525.4,0.00024007,7]
[388632492,1759277448068,-350.0,0.00024035,2]
[388632493,1759277448079,-200.0,0.000241,7]
[388632494,1759277448089,-600.0,0.0002411,2]
[388632495,1759277448099,-563.5725966,0.00024115,2]
[388632496,1759277448113,-1000.0,0.00024134,2]
[388632497,1759277448123,-1037.0,0.00024164,7]
[388632498,1759277448133,-629.0,0.00024164,7]
[388632499,1759277448143,-3339.91,0.000242,7]
[388632500,1759277448153,-947.1,0.00024205,2]
[388632501,1759277448164,-473.55,0.00024205,2]
[388632502,1759277448174,-806.89,0.00024205,2]
[388632503,1759277448184,-473.55,0.00024205,2]
[388632504,1759277448201,-473.55,0.00024205,2]
[388632505,1759277448211,-806.89,0.00024205,2]
[388632506,1759277448222,-473.55,0.00024205,2]
[388632507,1759277448232,-806.89,0.00024205,2]
[388632508,1759277448242,-473.55,0.00024205,2]
[388632509,1759277448252,-541.0,0.00024228,2]
[388632510,1759277448262,-385.71184707,0.00024228,2]
[388632511,1759277448272,-151.0,0.00024228,7]
[388632512,1759277448283,-500.0,0.00024231,2]
[388632513,1759277448293,-3525.4,0.00024281,7]
[388632514,1759277448304,-3525.4,0.00024281,7]
[388632515,1759277448314,-600.0,0.00024302,2]
[388632516,1759277448327,-6473.34962066,0.00024356,2]
[388632517,1759277448338,-803.20094,0.0002449,2]
[388632518,1759277448348,-5000.0,0.00024498,5]
[388632519,1759277448359,-1200.0,0.00024498,2]
[388632520,1759277448369,-541.0,0.00024502,2]
[388632521,1759277448379,-200.0,0.0002451,7]
[388632522,1759277448389,-600.0,0.00024545,2]
[388632523,1759277448398,-3525.4,0.00024555,7]
[388632524,1759277448408,-3525.4,0.00024555,7]
[388632525,1759277448418,-168.86850647,0.00024583,2]
[388632526,1759277448429,-3023.0,0.00024617,2]
[388632527,1759277448439,-12106.91538032,0.00024626,2]
[388632528,1759277448450,-1227.01,0.00024658,2]
[388632529,1759277448460,-151.0,0.00024658,7]
[388632530,1759277448470,-151.0,0.00024658,7]
[388632531,1759277448482,-151.0,0.00024658,7]
[388632532,1759277448492,-151.0,0.00024658,7]
[388632533,1759277448502,-151.0,0.00024658,7]
[388632534,1759277448519,-151.0,0.00024658,7]
[388632535,1759277448530,-151.0,0.00024658,7]
[388632536,1759277448540,-151.0,0.00024658,7]
[388632537,1759277448551,-188.757912,0.00024658,7]
[388632538,1759277448561,-1000.0,0.00024658,2]
[388632539,1759277448571,-151.0,0.00024658,7]
[388632540,1759277448582,-151.0,0.00024658,7]
[388632541,1759277448592,-151.0,0.00024658,7]
[388632542,1759277448602,-151.0,0.00024658,7]
[388632543,1759277448612,-151.0,0.00024658,7]
[388632544,1759277448622,-168.653657,0.00024658,7]
[388632545,1759277448632,-151.0,0.00024658,7]
[388632546,1759277448642,-151.0,0.00024658,7]
[388632547,1759277448653,-151.0,0.00024658,7]
[388632548,1759277448663,-500.0,0.00024658,2]
[388632549,1759277448673,-1628.0731822,0.00024686,2]
[388632550,1759277448684,-1180.0,0.00024719,2]
[388632551,1759277448694,-900.0,0.00024719,2]
[388632552,1759277448703,-6233.0,0.00024719,2]
[388632553,1759277448713,-4113.0,0.00024719,2]
[388632554,1759277448724,-621.0,0.00024719,2]
[388632555,1759277448734,-541.1034633,0.00024722,2]
[388632556,1759277448744,-428.0,0.0002473,2]
[388632557,1759277448754,-541.0,0.00024776,2]
[388632558,1759277448764,-1699.52466979,0.0002479,2]
[388632559,1759277448774,-1196.36,0.00024796,2]
[388632560,1759277448784,-461765.06927087,0.000248,3]
[388632561,1759277449897,-2998.88515831,0.000248,3]
[388632562,1759277449960,-769.71316237,0.000248,3]
[388632563,1759277449972,-587.70881217,0.000248,3]
[388632564,1759277449983,-135029.13021828,0.000248,3]
[388632565,1759277449994,-161.19485015,0.00024822,2]
[388632566,1759277450004,-526.1356694,0.00024823,2]
[388632567,1759277450014,-339.97446251,0.00024823,2]
[388632568,1759277450024,-3525.4,0.00024829,7]
[388632569,1759277450033,-3525.4,0.00024829,7]
[388632570,1759277450043,-855.6100002,0.00024834,7]
[388632571,1759277450052,-694.69924278,0.00024841,2]
[388632572,1759277450062,-600.0,0.0002485,2]
[388632573,1759277450072,-1019.0,0.00024855,7]
[388632574,1759277450082,-1019.0,0.00024855,7]